fUSD/lending_fUSD_20240224
["ID","MTS","AMOUNT","RATE_DAILY","PERIOD"]
[315058960,1708797038070,-8951.6327069,0.00024685,2]
[315058961,1708797038434,-11590.90092325,0.00024685,2]
[315058962,1708797038504,-276003.63122767,0.00024685,2]
[315058963,1708797038514,-9472.04193114,0.00024688,2]
[315058964,1708797038523,-168.21026662,0.00024688,2]
[315058965,1708797038536,-171.80334546,0.0002469,2]
[315058966,1708797038545,-500.0,0.00024695,2]
[315058967,1708797038555,-454.36630257,0.000247,2]
[315058968,1708797038564,-500.0,0.00024704,2]
[315058969,1708797038573,-250.0,0.00024707,2]
[315058970,1708797038582,-283.74,0.00024714,2]
[315058971,1708797038592,-800.0,0.00024727,2]
[315058972,1708797038601,-953.65,0.00024741,2]
[315058973,1708797038610,-169.23675464,0.00024749,2]
[315058974,1708797038619,-779.45,0.00024757,2]
[315058975,1708797038627,-300.0,0.00024757,2]
[315058976,1708797038636,-23900.0,0.00024758,2]
[315058977,1708797038645,-150.0,0.00024849,2]
[315058978,1708797038657,-2075.57,0.00024889,2]
[315058979,1708797038666,-750.0,0.00024889,2]
[315058980,1708797038675,-250.0,0.00024902,2]
[315058981,1708797038684,-1135.74,0.00024951,2]
[315058982,1708797038694,-1008.68254687,0.00025007,2]
[315058983,1708797038703,-958.4,0.00025008,2]
[315058984,1708797038712,-171.28,0.00025055,2]
[315058985,1708797038722,-200.0,0.00025063,2]
[315058986,1708797038731,-1000.0,0.00025085,2]
[315058987,1708797038741,-171.33,0.00025117,2]
[315058988,1708797038751,-268.27,0.00025145,2]
[315058989,1708797038760,-10297.692,0.00025164,2]
[315058990,1708797038769,-1049.53926743,0.00025198,2]
[315058991,1708797038779,-420.7,0.00025297,2]
[315058992,1708797038789,-42670.0,0.000254,2]
[315058993,1708797038798,-4892.0,0.000254,2]
[315058994,1708797038807,-2694.0,0.0002541,2]
[315058995,1708797038817,-1869.0,0.0002541,2]
[315058996,1708797038826,-918.636,0.0002541,2]
[315058997,1708797038836,-474.732,0.0002541,2]
[315058998,1708797038845,-440.48,0.0002541,2]
[315058999,1708797038854,-338.0,0.0002541,2]
[315059000,1708797038863,-2460.228,0.0002541,2]
[315059001,1708797038872,-1453.0,0.0002541,2]
[315059002,1708797038882,-2447.891,0.0002541,2]
[315059003,1708797038892,-2933.0,0.0002541,2]
[315059004,1708797038901,-21800.0,0.00025492,2]
[315059005,1708797038911,-329.1,0.000256,2]
[315059006,1708797038920,-181.99,0.00025658,2]
[315059007,1708797038929,-473.1412,0.00025668,2]
[315059008,1708797038938,-27348.5476,0.00025768,2]
[315059009,1708797038947,-171.33,0.00025771,2]
[315059010,1708797038956,-156.16,0.00025831,2]
[315059011,1708797038965,-250.0,0.0002593,2]
[315059012,1708797038974,-177.78,0.0002593,2]
[315059013,1708797038983,-500.0,0.0002593,2]
[315059014,1708797038992,-283.74,0.0002595,2]
[315059015,1708797039001,-150.0,0.00026,10]
[315059016,1708797039010,-150.0,0.00026077,2]
[315059017,1708797039019,-150.0,0.00026079,2]
[315059018,1708797039029,-250.0,0.00026204,2]
[315059019,1708797039067,-1240.25,0.00026231,2]
[315059020,1708797039076,-150.0,0.00026237,2]
[315059021,1708797039085,-150.0,0.00026237,2]
[315059022,1708797039094,-150.0,0.00026237,2]
[315059023,1708797039103,-331.87,0.00026237,2]
[315059024,1708797039112,-150.0,0.00026237,2]
[315059025,1708797039122,-150.0,0.00026237,2]
[315059026,1708797039132,-203.01,0.00026237,2]
[315059027,1708797039141,-156.16,0.00026261,2]
[315059028,1708797039156,-171.33,0.00026426,2]
[315059029,1708797039166,-177.78,0.00026478,2]
[315059030,1708797039176,-2500.0,0.00026539,2]
[315059031,1708797039186,-1836.4951,0.00026581,2]
[315059032,1708797039196,-406.6,0.00026608,2]
[315059033,1708797039206,-7081.0984,0.00026627,2]
[315059034,1708797039215,-15125.48451297,0.00026639,2]
[315059035,1708797039225,-200.0,0.00026649,2]
[315059036,1708797039234,-800.0,0.00026649,2]
[315059037,1708797039250,-200.0,0.00026649,2]
[315059038,1708797039266,-36741.20174343,0.00026681,2]
[315059039,1708797039276,-53234.46323446,0.00026681,2]
[315059040,1708797039286,-280.6254,0.00026685,2]
[315059041,1708797039297,-156.16,0.00026692,2]
[315059042,1708797039306,-485.50479738,0.000267,3]
[315059043,1708797039316,-411.0,0.00026711,2]
[315059044,1708797039326,-482.13444197,0.00026796,2]
[315059045,1708797039337,-155.0,0.00026797,2]
[315059046,1708797039347,-14541.622549,0.000268,2]
[315059047,1708797039356,-150.0,0.00026802,2]
[315059048,1708797039366,-285.0072,0.0002682,2]
[315059049,1708797039376,-158.94276246,0.00026828,2]
[315059050,1708797039386,-153.81127356,0.0002683,2]
[315059051,1708797039399,-760.33560707,0.0002683,2]
[315059052,1708797039409,-166.9686716,0.0002683,2]
[315059053,1708797039427,-3593.53059066,0.0002683,2]
[315059054,1708797039436,-9994.7863825,0.0002683,2]
[315059055,1708797039445,-387.17783935,0.0002683,2]
[315059056,1708797039455,-160.63475252,0.0002683,2]
[315059057,1708797039464,-183.26436525,0.0002683,2]
[315059058,1708797039474,-58510.6432,0.0002683,2]
[315059059,1708797039484,-5653.20540178,0.00026841,2]
[315059060,1708797039493,-5000.0,0.0002687,2]
[315059061,1708797039501,-485.50479731,0.00026871,3]
[315059062,1708797039511,-172.65979484,0.000269,2]
[315059063,1708797039520,-10000.0,0.000269,2]
[315059064,1708797039530,-46161.34231882,0.00026909,2]
[315059110,1708797040123,-2422.52742972,0.00026909,2]
[315059113,1708797040135,-1176.60009051,0.00026909,2]
[315059115,1708797040153,-563.68163121,0.00026909,2]
[315059118,1708797040164,-1632.22125844,0.00026909,2]
[315059178,1708797040744,-1087.7210005,0.00026681,2]
[315059215,1708797041137,-16097.87773375,0.00026681,2]
[315059217,1708797041148,-14002.07146929,0.00026909,2]
[315059227,1708797041250,-1424.0,0.00026909,2]
[315059234,1708797041313,-4338.70968461,0.00026909,2]
[315059236,1708797041325,-1394.95002234,0.00026909,2]
[315059238,1708797041336,-1797.156618,0.00026909,2]
[315059240,1708797041347,-260.97505988,0.00026909,2]
[315059242,1708797041358,-11763.47844482,0.00026909,2]
[315059244,1708797041368,-58729.9828273,0.00026919,2]
[315059246,1708797041377,-5663.5667543,0.00026919,2]
[315059247,1708797041386,-1495.0174128,0.00026919,2]
[315059249,1708797041395,-3171.6783016,0.00026919,2]
[315059251,1708797041405,-17478.49613,0.00026919,2]
[315059253,1708797041416,-4965.83731042,0.00026928,4]
[315059425,1708797042995,-582202.49208695,0.00026928,4]
[315059435,1708797043048,-270.06588779,0.00026928,4]
[315059647,1708797046037,-454.1358139,0.00026829,2]
[315059649,1708797046046,-59359.8641862,0.00026928,4]
[315059650,1708797046116,-661875.65450873,0.00026928,4]
[315059651,1708797046128,-29545.46647139,0.00026928,4]
[315059653,1708797046138,-162.45994033,0.00026929,2]
[315059655,1708797046149,-4984.22325509,0.00026929,2]
[315059657,1708797046158,-261.50894668,0.00026929,2]
[315059659,1708797046167,-234596.69274941,0.00026929,2]
[315059678,1708797046332,-834.90789438,0.00026929,2]
[315059680,1708797046344,-1100.46800016,0.00026929,2]
[315059682,1708797046356,-359.00939672,0.00026929,2]
[315059685,1708797046367,-1582.50625508,0.00026929,2]
[315059694,1708797046448,-243101.57356553,0.00026929,2]
[315059696,1708797046458,-415.16358472,0.0002693,2]
[315059699,1708797046467,-7088.00602458,0.0002693,4]
[315059701,1708797046476,-6691.04289432,0.00026931,2]
[315059705,1708797046499,-1711.28606678,0.00026931,2]
[315060130,1708797079120,3330.17012731,0.00021,2]
[315060131,1708797081200,8969.67854119,9e-05,2]
[315060132,1708797086638,1537.15026297,0.00018,2]
[315060133,1708797092619,3709.31662415,0.0001,2]
[315060134,1708797097176,1024.28526798,0.00011,2]
[315060137,1708797184815,508.0675366,0.000225,2]
[315060138,1708797228804,668.25057366,0.000142,2]
[315060139,1708797266735,427.64191864,0.00022,2]
[315060140,1708797285546,151.0,0.00028189,120]
[315060141,1708797507986,429.49,0.00021606,2]
[315060143,1708797612261,1311.0,0.000219,2]
[315060145,1708797724951,206.0,0.00022127,2]
[315060146,1708797819210,151.0,0.00028274,120]
[315060151,1708798024522,408.01,0.00021176,2]
[315060152,1708798112927,3258.78778185,0.00022,15]
[315060153,1708798132930,3258.78778185,0.00022,15]
[315060154,1708798148927,3258.78778185,0.00022,15]
[315060155,1708798170929,3258.78778185,0.00022,15]
[315060156,1708798188937,3258.78778185,0.00022,15]
[315060157,1708798210954,3258.78778185,0.00022,15]
[315060158,1708798230933,3258.78778185,0.00022,15]
[315060168,1708798232190,-300.0,0.0002276,2]
[315060169,1708798232199,-897.54386315,0.00022885,2]
[315060170,1708798232211,-384.86813329,0.00022885,2]
[315060171,1708798232223,-303.77486671,0.00022885,2]
[315060172,1708798232235,-569.74468527,0.00022885,2]
[315060173,1708798232245,-130.25531473,0.00022886,2]
[315060174,1708798232256,-4970.54868527,0.00022886,2]
[315060175,1708798232266,-250.0,0.00022891,2]
[315060176,1708798232277,-395.26245315,0.00022893,2]
[315060177,1708798232286,-150.0,0.00022985,2]
[315060178,1708798232296,-202.0,0.00022985,2]
[315060179,1708798232305,-11575.94258548,0.00022986,2]
[315060180,1708798232315,-266.25183925,0.00022998,2]
[315060181,1708798232326,-299.68685482,0.00022998,2]
[315060182,1708798232336,-51788.00854439,0.00023,2]
[315060183,1708798232346,-67607.97970983,0.00023,2]
[315060184,1708798232356,-500.0,0.00023043,2]
[315060185,1708798232367,-200.0,0.00023052,2]
[315060186,1708798232376,-595.15,0.00023052,2]
[315060187,1708798232386,-1049.04,0.00023052,2]
[315060188,1708798232395,-410.27,0.00023052,2]
[315060189,1708798232405,-200.0,0.00023061,2]
[315060190,1708798232415,-11348.82,0.00023091,2]
[315060191,1708798232424,-389.64,0.00023093,2]
[315060192,1708798232435,-395.26245313,0.00023098,2]
[315060193,1708798232445,-2000.0,0.00023146,2]
[315060194,1708798232455,-310.42,0.00023195,2]
[315060195,1708798232465,-164.99,0.00023201,2]
[315060196,1708798232474,-1420.31,0.00023208,2]
[315060197,1708798232484,-19866.63165397,0.00023297,2]
[315060198,1708798232497,-365.87288606,0.00023297,2]
[315060199,1708798232596,-3667.49545997,0.00023297,2]
[315060200,1708798232605,-640.0,0.00023297,2]
[315060201,1708798232615,-395.26245313,0.00023303,2]
[315060202,1708798232625,-2368.0,0.00023339,2]
[315060203,1708798232634,-157.91,0.00023353,2]
[315060204,1708798232643,-408.01,0.0002344,2]
[315060205,1708798232653,-157.91,0.00023489,2]
[315060206,1708798232662,-465.41,0.00023495,2]
[315060207,1708798232672,-395.26245313,0.00023508,2]
[315060208,1708798232681,-157.91,0.00023624,2]
[315060209,1708798232691,-395.26245313,0.00023713,2]
[315060210,1708798232700,-157.91,0.00023759,2]
[315060211,1708798232709,-157.91,0.00023894,2]
[315060212,1708798232719,-395.26245313,0.00023918,2]
[315060213,1708798232728,-60260.8747397,0.00024,2]
[315060214,1708798232741,-66365.46612165,0.00024,2]
[315060215,1708798232750,-177.47160323,0.00024016,6]
[315060216,1708798232759,-157.91,0.0002403,2]
[315060217,1708798232768,-156.4,0.00024096,2]
[315060218,1708798232778,-395.26245313,0.00024123,2]
[315060219,1708798232787,-157.91,0.00024165,2]
[315060220,1708798232796,-156.4,0.00024223,2]
[315060221,1708798232806,-157.91,0.000243,2]
[315060222,1708798232816,-395.26245313,0.00024328,2]
[315060223,1708798232825,-156.4,0.00024349,2]
[315060224,1708798232835,-310.42,0.00024355,2]
[315060225,1708798232844,-164.99,0.00024361,2]
[315060226,1708798232854,-360.0,0.00024379,2]
[315060227,1708798232863,-1054.66,0.00024384,2]
[315060228,1708798232872,-1165.48,0.00024384,2]
[315060229,1708798232882,-157.91,0.00024435,2]
[315060230,1708798232891,-156.4,0.00024476,2]
[315060231,1708798232900,-395.26245313,0.00024533,2]
[315060232,1708798232909,-190.43131336,0.0002457,2]
[315060233,1708798232929,-15.56868664,0.0002457,2]
[315060234,1708798232939,-157.91,0.0002457,2]
[315060235,1708798232948,-156.4,0.00024603,2]
[315060236,1708798232957,-101.99005297,0.00024658,2]
[315060237,1708798232994,-148.00994703,0.00024658,2]
[315060238,1708798233003,-235.132655,0.00024678,2]
[315060239,1708798233015,-2514.22406613,0.00024678,2]
[315060240,1708798233062,-7081.04461949,0.00024678,2]
[315060241,1708798233074,-957.6081914,0.00024678,2]
[315060242,1708798233785,-3436.72095758,0.00024678,2]
[315060257,1708798234159,-14537.36614536,0.00024678,2]
[315060280,1708798239036,-343.36644218,0.00024678,2]
[315060281,1708798239050,-846.249995,0.00024678,2]
[315060282,1708798239065,-445.67108331,0.00024678,2]
[315060283,1708798239079,-5217.472233,0.00024678,2]
[315060284,1708798239092,-2585.713104,0.00024678,2]
[315060285,1708798239104,-3103.60186094,0.00024678,2]
[315060286,1708798239116,-5103.49074197,0.00024678,2]
[315060287,1708798239126,-158.11243593,0.00024678,2]
[315060288,1708798239136,-4349.59286966,0.00024686,2]
[315060289,1708798239145,-4031.66689176,0.00024688,2]
[315060290,1708798239161,-1032.76,0.00024688,2]
[315060291,1708798239172,-363.61901928,0.00024688,2]
[315060513,1708798241439,-6204.88602747,0.00024688,2]
[315060515,1708798241449,-156.4,0.0002473,2]
[315060517,1708798241459,-395.26245313,0.00024738,2]
[315060519,1708798241468,-1420.31,0.00024852,2]
[315060521,1708798241477,-156.4,0.00024857,2]
[315060523,1708798241488,-1934.5766,0.000249,2]
[315060525,1708798241500,-395.26245313,0.00024942,2]
[315060527,1708798241510,-156.4,0.00024984,2]
[315060529,1708798241519,-1008.68254687,0.00025,2]
[315060532,1708798241530,-1250.0,0.00025,3]
[315060534,1708798241541,-598.49793081,0.0002501,2]
[315060536,1708798241550,-427.6409,0.0002504,2]
[315060538,1708798241559,-152299.08969889,0.0002504,2]
[315060540,1708798241571,-1231.57342829,0.0002504,2]
[315060542,1708798241584,-1147.49496179,0.0002504,2]
[315060546,1708798241609,-3650.000001,0.0002504,2]
[315060548,1708798241620,-86671.84191003,0.0002504,2]
[315060550,1708798241630,-204.46914751,0.00025047,2]
[315060552,1708798241639,-156.4,0.0002511,2]
[315060554,1708798241649,-190.64517069,0.0002513,2]
[315060557,1708798241658,-567.978,0.00025132,2]
[315060559,1708798241667,-1453.0,0.00025132,2]
[315060561,1708798241677,-198.35460346,0.00025138,2]
[315060563,1708798241685,-200000.0,0.0002514,2]
[315060565,1708798241694,-395.26245313,0.00025147,2]
[315060567,1708798241702,-156.4,0.00025237,2]
[315060569,1708798241710,-210.0,0.00025284,2]
[315060571,1708798241719,-395.26245313,0.00025352,2]
[315060573,1708798241727,-156.4,0.00025364,2]
[315060575,1708798241736,-747.29,0.00025372,2]
[315060577,1708798241744,-537.17279755,0.000254,2]
[315060579,1708798241753,-150.692,0.0002541,2]
[315060581,1708798241760,-295.442,0.0002541,2]
[315060583,1708798241768,-209.302,0.0002541,2]
[315060585,1708798241777,-206.393,0.0002541,2]
[315060587,1708798241787,-150.0,0.0002541,2]
[315060589,1708798241798,-212.352,0.0002541,2]
[315060591,1708798241808,-150.182,0.0002541,2]
[315060593,1708798241818,-154.783,0.0002541,2]
[315060595,1708798241827,-151.626,0.0002541,2]
[315060597,1708798241837,-413.13,0.00025415,2]
[315060599,1708798241846,-159.44,0.00025415,2]
[315060601,1708798241858,-413.13,0.00025415,2]
[315060603,1708798241868,-150.0,0.00025415,2]
[315060605,1708798241878,-150.0,0.00025415,2]
[315060608,1708798241889,-598.49793081,0.00025415,2]
[315060610,1708798241898,-150.0,0.00025415,2]
[315060612,1708798241909,-413.13,0.00025415,2]
[315060614,1708798241918,-150.0,0.00025415,2]
[315060616,1708798241928,-297.19,0.00025415,2]
[315060618,1708798241938,-344.56,0.00025415,2]
[315060620,1708798241948,-150.0,0.00025415,2]
[315060622,1708798241958,-150.0,0.00025415,2]
[315060624,1708798241968,-156.4,0.00025491,2]
[315060626,1708798241978,-40089.0,0.000255,2]
[315060628,1708798241988,-4647.0,0.000255,2]
[315060630,1708798241998,-279.73,0.000255,2]
[315060632,1708798242008,-310.42,0.00025515,2]
[315060634,1708798242017,-164.99,0.00025521,2]
[315060636,1708798242028,-395.26245313,0.00025557,2]
[315060638,1708798242038,-150.0,0.000256,2]
[315060641,1708798242049,-159.32097843,0.000256,2]
[315060643,1708798242059,-250.0,0.000256,2]
[315060645,1708798242069,-177.78,0.000256,2]
[315060647,1708798242080,-156.4,0.00025618,2]
[315060649,1708798242090,-375.6833,0.00025668,2]
[315060650,1708798242100,-408.01,0.00025704,2]
[315060651,1708798242110,-156.4,0.00025744,2]
[315060652,1708798242120,-395.26245313,0.00025762,2]
[315060653,1708798242129,-598.49793081,0.0002582,2]
[315060654,1708798242139,-156.4,0.00025871,2]
[315060655,1708798242149,-250.0,0.00025874,2]
[315060656,1708798242158,-395.26245313,0.00025967,2]
[315060657,1708798242168,-156.4,0.00025998,2]
[315060658,1708798242177,-680.32082362,0.00026,2]
[315060659,1708798242187,-150.0,0.00026079,2]
[315060662,1708798242197,-156.4,0.00026125,2]
[315060665,1708798242219,-100000.0,0.00026131,2]
[315060667,1708798242229,-339.92330661,0.00026148,2]
[315060669,1708798242239,-177.78,0.00026148,2]
[315060671,1708798242248,-533.0,0.00026171,2]
[315060673,1708798242258,-395.26245313,0.00026172,2]
[315060675,1708798242268,-640.0,0.00026209,2]
[315060677,1708798242277,-598.49793081,0.00026225,3]
[315060679,1708798242287,-423.89,0.00026237,2]
[315060682,1708798242298,-852.93,0.00026237,2]
[315060684,1708798242308,-722.73,0.00026237,2]
[315060686,1708798242317,-423.89,0.00026237,2]
[315060688,1708798242327,-413.13,0.00026237,2]
[315060690,1708798242336,-165.38,0.00026237,2]
[315060692,1708798242346,-413.13,0.00026237,2]
[315060694,1708798242356,-413.13,0.00026237,2]
[315060696,1708798242366,-413.13,0.00026237,2]
[315060698,1708798242376,-413.13,0.00026237,2]
[315060700,1708798242386,-413.13,0.00026237,2]
[315060702,1708798242396,-150.0,0.00026237,2]
[315060705,1708798242406,-150.0,0.00026237,2]
[315060707,1708798242416,-194.86,0.00026237,2]
[315060709,1708798242426,-150.0,0.00026237,2]
[315060711,1708798242436,-300.0,0.00026237,2]
[315060713,1708798242446,-150.0,0.00026237,2]
[315060715,1708798242456,-150.0,0.00026237,2]
[315060717,1708798242466,-156.4,0.00026252,2]
[315060719,1708798242476,-747.29,0.0002627,2]
[315060721,1708798242486,-2864.73358557,0.000263,2]
[315060723,1708798242498,-309.0,0.00026371,2]
[315060725,1708798242510,-395.26245313,0.00026377,2]
[315060727,1708798242520,-352.7045,0.00026378,2]
[315060730,1708798242530,-156.4,0.00026379,2]
[315060732,1708798242540,-1420.31,0.00026496,2]
[315060734,1708798242551,-174.88539409,0.00026499,2]
[315060736,1708798242560,-5000.0,0.00026499,2]
[315060738,1708798242570,-151.99980835,0.000265,2]
[315060740,1708798242580,-2000.0,0.000265,2]
[315060742,1708798242591,-5326.12052339,0.000265,2]
[315060744,1708798242602,-363.30865112,0.000265,2]
[315060746,1708798242611,-167.64428853,0.000265,5]
[315060748,1708798242622,-323.55019796,0.000265,2]
[315060750,1708798242631,-2479.4663931,0.000265,2]
[315060752,1708798242641,-156.4,0.00026505,2]
[315060754,1708798242651,-500.0,0.00026539,2]
[315060756,1708798242661,-581.6,0.00026579,2]
[315060759,1708798242671,-395.26245313,0.00026582,2]
[315060761,1708798242682,-102712.39422165,0.00026599,4]
[315060763,1708798242696,-406.96999583,0.00026599,4]
[315060851,1708798243595,-316.59625256,0.00026599,4]
[315060854,1708798243618,-399.40283649,0.00026599,4]
[315060856,1708798243632,-1709.37272242,0.00026599,4]
[315060983,1708798244860,-1112.78173685,0.00026599,4]
[315060986,1708798244872,-2983.55001,0.00026599,4]
[315060988,1708798244882,-3112.2,0.00026599,4]
[315060991,1708798244903,-958.76890871,0.00026599,4]
[315060995,1708798244926,-900.09,0.00026599,4]
[315060999,1708798244956,-3272.5654438,0.00026599,4]
[315061001,1708798244967,-5381.46686349,0.00026599,4]
[315061004,1708798244982,-260812.16523508,0.00026599,4]
[315061025,1708798245171,-5000.0,0.00026499,2]
[315061027,1708798245180,-8014.26743467,0.00026599,4]
[315061029,1708798245191,-739933.7797826,0.00026599,4]
[315061031,1708798245200,-50123.81097233,0.00026599,2]
[315061034,1708798245213,-297.27599253,0.00026599,2]
[315061037,1708798245242,-1505.1317,0.00026599,2]
[315061040,1708798245253,-10004.74774209,0.00026599,2]
[315061042,1708798245269,-681.02717481,0.00026599,2]
[315061045,1708798245280,-9604.3927807,0.00026599,2]
[315061143,1708798246251,-423.89,0.00025415,2]
[315061145,1708798246260,-43.02296572,0.00026599,2]
[315061169,1708798246480,-18718.95067182,0.00026599,2]
[315061171,1708798246489,-390380.40086176,0.000266,4]
[315061350,1708798248971,3258.78778185,0.00022,15]
[315061434,1708798272968,3258.78778185,0.00024688,15]
[315061435,1708798291095,2451.21915861,0.00024688,15]
[315061437,1708798586340,-1247.0482,0.0002266,2]
[315061438,1708798586366,-395.25,0.00023515,2]
[315061439,1708798586389,-4977.55872681,0.00024679,2]
[315061440,1708798586411,-6380.14307319,0.0002468,2]
[315061441,1708798590951,-25000.0,0.0002468,2]
[315061442,1708798592157,-25000.0,0.0002468,2]
[315061443,1708798593390,-25000.0,0.0002468,2]
[315061444,1708798594942,-25000.0,0.0002468,2]
[315061445,1708798596674,-25000.0,0.0002468,2]
[315061446,1708798732298,-54124.0,0.0002468,2]
[315061447,1708798779243,-942.0,0.0002468,2]
[315061448,1708798796606,-758.0,0.0002468,2]
[315061449,1708798892746,814.67738,0.0001,2]
[315061451,1708799112569,1565.14914372,0.000219,2]
[315061805,1708799253339,151.0,0.00028301,120]
[315061806,1708799262448,5000.0,0.0002901,120]
[315061811,1708799431366,-822.08,0.00022601,2]
[315061812,1708799431476,-780.52,0.00022601,2]
[315061813,1708799431534,-390.03158511,0.00022601,2]
[315061845,1708799438209,-163.29996331,0.00022601,2]
[315061847,1708799438219,-437.61,0.00022602,2]
[315061849,1708799438229,-1144.25,0.00024245,2]
[315061851,1708799438239,-616.0,0.000243,2]
[315061853,1708799438249,-2815.65186362,0.00024351,2]
[315061855,1708799438261,-2823.78575954,0.00024351,2]
[315061856,1708799438273,-3069.95143986,0.00024351,2]
[315061857,1708799438284,-1553.65636861,0.00024351,2]
[315061858,1708799438296,-2184.54097597,0.00024351,2]
[315061859,1708799438312,-891.0435924,0.00024351,2]
[315061860,1708799438321,-250.0,0.00024376,2]
[315061861,1708799438331,-878.88,0.00024384,2]
[315061862,1708799438340,-500.0,0.0002443,2]
[315061863,1708799438350,-155.21,0.00024566,2]
[315061864,1708799438360,-194.82,0.00024615,2]
[315061865,1708799438369,-3114.53766381,0.0002468,2]
[315061868,1708799438381,-4778.79935806,0.0002468,2]
[315061870,1708799438389,-158.4,0.00024706,2]
[315061872,1708799438398,-1644.74923109,0.00024706,2]
[315061878,1708799438442,-619.52602027,0.00024706,2]
[315062024,1708799440079,-541.15759714,0.00022601,2]
[315062026,1708799440088,-541.15759714,0.00022602,2]
[315062028,1708799440097,-541.15759714,0.00022602,2]
[315062030,1708799440106,-835.48474864,0.00024706,2]
[315062032,1708799440116,-437.61,0.00024866,2]
[315062034,1708799440126,-971.23,0.00024945,2]
[315062037,1708799440135,-1000.0,0.00025,2]
[315062039,1708799440145,-158.4,0.00025059,2]
[315062041,1708799440154,-384.0,0.00025082,2]
[315062042,1708799440164,-336.02,0.000251,2]
[315062044,1708799440173,-206.0,0.00025113,2]
[315062046,1708799440183,-197.63122657,0.00025154,2]
[315062049,1708799440193,-177.78,0.00025275,2]
[315062050,1708799440203,-36088.76387929,0.00025302,2]
[315062053,1708799440218,-45330.0,0.00025302,2]
[315062087,1708799440528,-8530.52242071,0.00025302,2]
[315062089,1708799440538,-4692.0,0.000254,2]
[315062091,1708799440547,-8467.24917929,0.000254,2]
[315062108,1708799440693,-3103.4,0.000254,2]
[315062110,1708799440704,-19366.9390905,0.000254,2]
[315062112,1708799440716,-6748.41173021,0.000254,2]
[315062114,1708799440725,-158.4,0.00025412,2]
[315062117,1708799440735,-494.50595634,0.00025498,2]
[315062118,1708799440744,-1911.93134637,0.000255,2]
[315062120,1708799440754,-1000.0,0.000255,2]
[315062123,1708799440764,-119466.2237,0.00025502,2]
[315062125,1708799440774,-415.99674725,0.00025502,2]
[315062126,1708799440783,-152.98,0.00025536,2]
[315062128,1708799440792,-600.0,0.00025602,2]
[315062130,1708799440802,-216.0,0.00025602,2]
[315062132,1708799440812,-1257.0,0.00025602,2]
[315062134,1708799440821,-1231.0,0.00025602,2]
[315062136,1708799440830,-1953.0,0.00025602,2]
[315062138,1708799440840,-430.0,0.00025602,2]
[315062140,1708799440849,-859.0,0.00025602,2]
[315062142,1708799440859,-1007.0,0.00025602,2]
[315062145,1708799440869,-276.0,0.00025602,2]
[315062147,1708799440879,-338.0,0.00025602,2]
[315062149,1708799440891,-322.0,0.00025602,2]
[315062151,1708799440901,-1138.0,0.00025602,2]
[315062153,1708799440910,-302.0,0.00025602,2]
[315062155,1708799440919,-2890.0,0.00025602,2]
[315062157,1708799440929,-390.0,0.00025602,2]
[315062159,1708799440937,-1453.0,0.00025602,2]
[315062160,1708799440947,-2446.085,0.00025602,2]
[315062162,1708799440956,-1040.0,0.00025602,2]
[315062164,1708799440966,-7437.0,0.00025602,2]
[315062166,1708799440976,-5636.0,0.00025602,2]
[315062168,1708799440985,-2694.0,0.00025602,2]
[315062170,1708799440995,-1372.0,0.00025602,2]
[315062172,1708799441005,-4108.0,0.00025602,2]
[315062174,1708799441014,-8185.0,0.00025602,2]
[315062176,1708799441023,-2935.0,0.00025602,2]
[315062178,1708799441032,-2295.0,0.00025602,2]
[315062180,1708799441042,-42635.0,0.00025602,2]
[315062182,1708799441051,-1869.0,0.00025602,2]
[315062184,1708799441060,-19898.0,0.00025602,2]